bitfinex/quotes_ETHUSD_20250711
["timestamp","ask_amount","ask_price","bid_price","bid_amount"]
[1752221152259,0.30451917,2974.6,2974.5,16.40220879]
[1752221152464,0.30451917,2974.6,2974.5,10.64420879]
[1752221152661,0.30451917,2974.6,2974.5,16.39920879]
[1752221153172,0.74541917,2974.6,2974.5,10.0]
[1752221153353,2.54341917,2974.6,2974.5,15.755]
[1752221153640,2.79776109,2974.6,2974.5,15.755]
[1752221154198,3.90776109,2974.6,2974.5,15.755]
[1752221154413,3.65341917,2974.6,2974.5,15.755]
[1752221155810,3.65341917,2974.6,2974.5,10.0]
[1752221156013,3.65341917,2974.6,2974.5,15.751]
[1752221156711,2.69251917,2974.6,2974.5,16.22720879]
[1752221157147,4.79071917,2974.6,2974.5,16.22720879]
[1752221158051,4.38792438,2974.6,2974.5,15.751]
[1752221158252,4.38792438,2974.6,2974.5,15.753]
[1752221159105,4.38792438,2974.6,2974.5,10.002]
[1752221159303,5.49792438,2974.6,2974.5,15.75]
[1752221159739,5.49792438,2974.6,2974.5,10.002]
[1752221159947,5.98519244,2974.6,2974.5,8.057]
[1752221160145,5.98519244,2974.6,2974.5,13.802]
[1752221160320,5.98519244,2974.6,2974.5,23.802]
[1752221160948,5.98519244,2974.6,2974.5,18.057]
[1752221161270,5.98519244,2974.6,2974.5,23.8]
[1752221161674,7.09519244,2974.6,2974.5,23.8]
[1752221162013,7.09519244,2974.6,2974.5,18.057]
[1752221162141,7.09519244,2974.6,2974.5,8.057]
[1752221162449,7.09519244,2974.6,2974.5,23.798]
[1752221163075,7.09519244,2974.6,2974.5,13.798]
[1752221163235,7.09519244,2974.6,2974.5,23.798]
[1752221164040,7.2145,2974.6,2974.5,23.798]
[1752221164350,5.55,2974.6,2974.5,24.73088678]
[1752221165168,5.9909,2974.6,2974.5,18.53320879]
[1752221165471,5.9909,2974.6,2974.5,23.795]
[1752221165832,5.9909,2974.6,2974.5,18.057]
[1752221166036,5.9909,2974.6,2974.5,23.795]
[1752221166269,6.58999,2974.6,2974.5,23.793]
[1752221166540,7.69999,2974.6,2974.5,23.793]
[1752221166846,6.66,2974.6,2974.5,18.057]
[1752221167077,6.66,2974.6,2974.5,24.27020879]
[1752221168102,6.66,2974.6,2974.5,29.34868678]
[1752221168103,4.52027771,2974.6,2974.5,29.34868678]
[1752221168406,4.35243672,2974.6,2974.5,33.09808862]
[1752221168775,5.29459573,2974.6,2974.5,33.09808862]
[1752221168970,5.29459573,2974.6,2974.5,36.40789748]
[1752221169185,5.12675474,2974.6,2974.5,36.40789748]
[1752221169682,4.95891375,2974.6,2974.5,36.40789748]
[1752221169884,4.95891375,2974.6,2974.5,30.84089748]
[1752221170111,4.79107276,2974.6,2974.5,32.76021949]
[1752221170316,4.79107276,2974.6,2974.5,31.88960886]
[1752221170630,3.70042613,2974.6,2974.5,26.08481765]
[1752221170775,3.70042613,2974.6,2974.5,23.955]
[1752221171177,3.70042613,2974.6,2974.5,18.225]
[1752221171537,4.81042613,2974.6,2974.5,13.787]
[1752221172326,4.81042613,2974.6,2974.5,23.787]
[1752221172327,4.28552613,2974.6,2974.5,23.787]
[1752221172537,4.28552613,2974.6,2974.5,18.058]
[1752221172538,4.72642613,2974.6,2974.5,18.058]
[1752221172814,4.72642613,2974.6,2974.5,13.785]
[1752221173319,4.72642613,2974.6,2974.5,23.785]
[1752221173821,5.83642613,2974.6,2974.5,23.785]
[1752221173976,5.83642613,2974.6,2974.5,23.784]
[1752221175023,5.56352613,2974.6,2974.5,23.784]
[1752221175182,6.01352613,2974.6,2974.5,23.784]
[1752221175502,7.67032613,2974.6,2974.5,18.058]
[1752221175703,7.67032613,2974.6,2974.5,23.781]
[1752221176085,8.78032613,2974.6,2974.5,23.781]
[1752221176282,8.78032613,2974.6,2974.5,13.781]
[1752221176621,8.78032613,2974.6,2974.5,23.781]
[1752221176808,8.78032613,2974.6,2974.5,13.781]
[1752221177322,8.78032613,2974.6,2974.5,23.781]
[1752221178101,8.37750675,2974.6,2974.5,23.781]
[1752221178919,9.48750675,2974.6,2974.5,23.781]
[1752221179698,9.03850675,2974.6,2974.5,23.781]
[1752221180090,9.03850675,2974.6,2974.5,18.058]
[1752221180292,9.03850675,2974.6,2974.5,23.776]
[1752221180728,9.03850675,2974.6,2974.5,18.058]
[1752221180903,9.03850675,2974.6,2974.5,23.776]
[1752221181316,10.14850675,2974.6,2974.5,23.776]
[1752221183838,9.60170675,2974.6,2974.5,23.776]
[1752221184006,9.60170675,2974.6,2974.5,24.25220879]
[1752221184441,9.60170675,2974.6,2974.5,23.771]
[1752221185143,8.67007595,2974.6,2974.5,24.24720879]
[1752221185340,8.67007595,2974.6,2974.5,27.11322967]
[1752221186348,9.78007595,2974.6,2974.5,27.11322967]
[1752221186845,9.78007595,2974.6,2974.5,21.40022967]
[1752221187163,9.78007595,2974.6,2974.5,29.12522967]
[1752221187363,9.78007595,2974.6,2974.5,29.29322967]
[1752221188440,8.57187575,2974.6,2974.5,29.29322967]
[1752221188640,9.68187575,2974.6,2974.5,29.29322967]
[1752221188953,9.68187575,2974.6,2974.5,29.84322967]
[1752221189150,8.5911497,2974.6,2974.5,29.84322967]
[1752221189742,8.42332054,2974.6,2974.5,31.47452967]
[1752221189942,8.42332054,2974.6,2974.5,32.3256095]
[1752221190147,8.25549138,2974.6,2974.5,32.3256095]
[1752221190545,8.08766222,2974.6,2974.5,32.3256095]
[1752221190949,9.02983306,2974.6,2974.5,32.3256095]
[1752221191144,9.02983306,2974.6,2974.5,31.86893151]
[1752221191338,8.8620039,2974.6,2974.5,31.86893151]
[1752221191863,8.69423274,2974.6,2974.5,31.86893151]
[1752221192170,8.52646158,2974.6,2974.5,32.3256095]
[1752221192553,8.30869042,2974.6,2974.5,32.3256095]
[1752221193055,8.14091926,2974.6,2974.5,32.3256095]
[1752221193373,7.9731481,2974.6,2974.5,32.3256095]
[1752221193581,9.0831481,2974.6,2974.5,32.3256095]
[1752221193764,8.91537694,2974.6,2974.5,32.3256095]
[1752221194277,8.74760578,2974.6,2974.5,32.3256095]
[1752221194440,8.74760578,2974.6,2974.5,31.85793151]
[1752221194646,8.57983462,2974.6,2974.5,31.85793151]
[1752221195053,7.3215371,2974.6,2974.5,31.85793151]
[1752221195358,7.15376594,2974.6,2974.5,31.85793151]
[1752221195763,6.98599478,2974.6,2974.5,31.85793151]
[1752221196074,8.09599478,2974.6,2974.5,31.85793151]
[1752221196276,7.92822362,2974.6,2974.5,31.85793151]
[1752221196574,6.95513888,2974.6,2974.5,32.3146095]
[1752221197200,4.03931543,2975.2,2974.9,2.016]
[1752221197368,4.03931543,2975.2,2975.1,12.566]
[1752221197567,4.03931543,2975.2,2975.1,13.21020879]
[1752221197769,3.87156285,2975.2,2975.1,14.58021765]
[1752221197992,3.87156285,2975.2,2975.1,16.58869564]
[1752221198293,3.70381027,2975.2,2975.1,16.58869564]
[1752221198677,4.64605769,2975.2,2975.1,16.58869564]
[1752221198878,4.64605769,2975.2,2975.1,20.93678964]
[1752221199185,4.47830511,2975.2,2975.1,21.33119148]
[1752221199381,4.31055253,2975.2,2975.1,21.33119148]
[1752221199783,4.14279995,2975.2,2975.1,21.33119148]
[1752221199961,1.0405114,2977.0,2975.7,1.523]
[1752221200159,1.2077114,2977.0,2976.4,0.1672]
[1752221200386,0.45,2976.9,2976.6,10.0]
[1752221200595,0.45,2976.9,2976.7,5.689]
[1752221200792,0.45,2976.9,2976.8,15.689]
[1752221201400,0.45,2976.9,2976.8,10.0]
[1752221201582,0.81132492,2976.9,2976.8,15.688]
[1752221201970,0.81132492,2976.9,2976.8,15.93429433]
[1752221202961,1.9983,2976.9,2976.8,15.93429433]
[1752221203795,3.1083,2976.9,2976.8,15.93429433]
[1752221206167,4.2183,2976.9,2976.8,15.93429433]
[1752221207873,3.7683,2976.9,2976.8,15.93429433]
[1752221208069,2.22,2976.9,2976.8,15.93429433]
[1752221208298,2.3872,2976.9,2976.8,15.93429433]
[1752221208505,3.4972,2976.9,2976.8,15.93429433]
[1752221209084,3.4972,2976.9,2976.8,15.92229433]
[1752221209309,3.9365,2976.9,2976.8,15.92229433]
[1752221210067,3.9365,2976.9,2976.8,10.24629433]
[1752221210270,4.79660492,2976.9,2976.8,15.92129433]
[1752221210917,5.90660492,2976.9,2976.8,15.92129433]
[1752221211713,7.52950492,2976.9,2976.8,10.24629433]
[1752221211919,7.52950492,2976.9,2976.0,0.434]
[1752221211920,5.90660492,2976.9,2976.0,0.434]
[1752221212221,0.80571163,2976.8,2976.2,10.0]
[1752221212422,0.80571163,2976.8,2976.4,10.0]
[1752221212599,1.5224,2976.7,2976.6,10.0]
[1752221213284,2.6324,2976.7,2976.6,10.0]
[1752221213590,1.6896,2976.6,2975.8,8.053]
[1752221213790,5.85,2976.7,2975.8,8.053]
[1752221213791,1.5978,2976.4,2975.8,8.053]
[1752221214004,1.5978,2976.4,2975.9,5.67]
[1752221214328,1.5978,2976.4,2975.9,0.24733787]
[1752221214527,1.5978,2976.4,2976.0,5.669]
[1752221215718,1.5978,2976.4,2976.1,0.434]
[1752221215919,1.5978,2976.4,2976.2,15.669]
[1752221215920,0.709176,2976.3,2976.2,15.669]
[1752221216434,2.344476,2976.3,2976.2,16.103]
[1752221218144,7.084476,2976.3,2976.2,16.103]
[1752221218346,8.194476,2976.3,2976.2,16.103]
[1752221218547,8.194476,2976.3,2976.2,15.669]
[1752221218746,1.5726,2976.2,2976.0,0.434]
[1752221218969,1.5726,2976.1,2976.0,0.434]
[1752221219822,1.5726,2976.1,2976.0,6.098]
[1752221220974,2.6826,2976.1,2976.0,6.098]
[1752221221659,1.11,2976.1,2976.0,6.098]
[1752221221827,1.11,2976.1,2976.0,6.57420879]
[1752221222966,1.11,2976.1,2976.0,6.098]
[1752221223166,1.96142,2976.1,2976.0,6.093]
[1752221223343,2.22,2976.1,2976.0,6.093]
[1752221223662,2.22,2976.1,2976.0,6.56920879]
[1752221223854,1.8173725,2976.1,2976.0,6.56920879]
[1752221224575,1.8173725,2976.1,2976.0,17.02588678]
[1752221224790,1.8173725,2976.1,2976.0,16.56920879]
[1752221224939,1.8173725,2976.1,2976.0,19.22751334]
[1752221225543,1.8173725,2976.1,2976.0,10.0]
[1752221225768,2.9273725,2976.1,2976.0,24.142]
[1752221226679,2.9273725,2976.1,2976.0,24.141]
[1752221228252,4.0373725,2976.1,2976.0,24.141]
[1752221229375,4.0373725,2976.1,2976.0,24.138]
[1752221229684,4.71534975,2976.1,2976.0,24.138]
[1752221229896,4.0373725,2976.1,2976.0,24.138]
[1752221230593,4.0373725,2976.1,2976.0,18.486]
[1752221230787,5.1473725,2976.1,2976.0,24.136]
[1752221230953,5.1473725,2976.1,2976.0,18.486]
[1752221231159,5.1473725,2976.1,2976.0,24.135]
[1752221231358,5.93634975,2976.1,2976.0,24.135]
[1752221231956,5.1473725,2976.1,2976.0,24.135]
[1752221233294,6.2573725,2976.1,2976.0,24.135]
[1752221233794,6.2573725,2976.1,2976.0,24.131]
[1752221235767,7.3673725,2976.1,2976.0,18.486]
[1752221236000,7.3673725,2976.1,2976.0,24.13]
[1752221237464,6.96472707,2976.1,2976.0,24.13]
[1752221237666,7.13272707,2976.1,2976.0,24.13]
[1752221238200,8.24272707,2976.1,2976.0,24.13]
[1752221238561,8.24272707,2976.1,2976.0,23.692]
[1752221240003,8.24272707,2976.1,2976.0,24.1442]
[1752221240301,8.24272707,2976.1,2976.0,18.5042]
[1752221240500,8.24272707,2976.1,2976.0,18.052]
[1752221240705,10.28799978,2976.1,2976.0,23.689]
[1752221240880,9.35272707,2976.1,2976.0,23.689]
[1752221241081,9.35272707,2976.1,2976.0,24.1412]
[1752221243224,10.46272707,2976.1,2976.0,24.1412]
[1752221244416,10.46272707,2976.1,2976.0,18.052]
[1752221244614,10.46272707,2976.1,2976.0,23.686]
[1752221244828,11.61999978,2976.1,2976.0,23.685]
[1752221245141,11.62099978,2976.1,2976.0,23.685]
[1752221245698,12.73099978,2976.1,2976.0,23.685]
[1752221246138,11.57372707,2976.1,2976.0,23.685]
[1752221246844,11.57372707,2976.1,2976.0,24.1372]
[1752221247329,11.17109406,2976.1,2976.0,24.1372]
[1752221248033,12.28109406,2976.1,2976.0,24.1372]
[1752221248399,12.28109406,2976.1,2976.0,18.5062]
[1752221248596,12.28109406,2976.1,2976.0,24.1332]
[1752221250933,13.39109406,2976.1,2976.0,24.1332]
[1752221252306,13.39109406,2976.1,2976.0,26.57221367]
[1752221252645,13.39109406,2976.1,2976.0,24.1332]
[1752221253420,14.50109406,2976.1,2976.0,24.1332]
[1752221253945,14.50109406,2976.1,2976.0,23.674]
[1752221254130,14.50109406,2976.1,2976.0,24.1262]
[1752221255536,14.50109406,2976.1,2976.0,23.674]
[1752221255942,14.50109406,2976.1,2976.0,23.671]
[1752221255943,17.64090347,2976.1,2976.0,23.671]
[1752221256960,17.17220347,2976.1,2976.0,23.671]
[1752221257260,1.6399,2975.9,2975.3,8.052]
[1752221257467,4.74,2975.8,2975.4,5.615]
[1752221257965,5.2087,2975.8,2975.4,5.615]
[1752221258366,6.3187,2975.8,2975.4,5.615]
[1752221258542,0.168,2975.4,2975.3,8.052]
[1752221258749,1.03360277,2975.4,2975.2,0.25207842]
[1752221259075,2.1005,2975.3,2975.0,8.052]
[1752221259230,4.74,2975.2,2975.1,5.614]
[1752221259440,0.4687,2975.2,2975.1,5.614]
[1752221259739,1.6318,2975.3,2975.1,5.614]
[1752221260866,2.7418,2975.3,2975.1,5.614]
[1752221261576,0.168,2975.1,2975.0,18.052]
[1752221261734,0.168,2975.1,2975.0,23.663]
[1752221262357,0.45898,2975.1,2975.0,23.663]
[1752221263281,1.56898,2975.1,2975.0,23.663]
[1752221263481,1.278,2975.1,2975.0,23.663]
[1752221264064,1.278,2975.1,2975.0,23.92030469]
[1752221264790,1.278,2975.1,2975.0,23.91730469]
[1752221265895,2.388,2975.1,2975.0,23.91730469]
[1752221266387,2.388,2975.1,2975.0,23.91530469]
[1752221268189,3.498,2975.1,2975.0,23.91530469]
[1752221268991,3.498,2975.1,2975.0,23.91430469]
[1752221269490,3.498,2975.1,2975.0,27.86993516]
[1752221269791,3.498,2975.1,2975.0,18.30930469]
[1752221270175,3.498,2975.1,2975.0,23.91130469]
[1752221270659,4.608,2975.1,2975.0,23.91130469]
[1752221273106,5.718,2975.1,2975.0,23.91130469]
[1752221274405,5.718,2975.1,2975.0,18.30930469]
[1752221274706,5.718,2975.1,2975.0,23.90630469]
[1752221275374,6.828,2975.1,2975.0,23.90630469]
[1752221276711,6.828,2975.1,2975.0,18.30930469]
[1752221276887,6.828,2975.1,2975.0,23.90430469]
[1752221277205,6.828,2975.1,2975.0,23.90330469]
[1752221278004,7.938,2975.1,2975.0,23.90330469]
[1752221279589,7.70323596,2975.1,2975.0,23.90330469]
[1752221280311,8.81323596,2975.1,2975.0,23.90330469]
[1752221280815,8.81323596,2975.1,2975.0,23.89930469]
[1752221281416,8.81323596,2975.1,2975.0,18.30930469]
[1752221281624,8.81323596,2975.1,2975.0,23.89830469]
[1752221281996,8.81323596,2975.1,2975.0,18.30930469]
[1752221282338,9.80555956,2975.1,2975.0,23.89730469]
[1752221282723,10.91555956,2975.1,2975.0,23.89730469]
[1752221282923,9.92323596,2975.1,2975.0,23.89730469]
[1752221284409,9.92323596,2975.1,2975.0,25.51150469]
[1752221285222,10.86523596,2975.1,2975.0,25.51150469]
[1752221285832,10.86523596,2975.1,2975.0,19.92350469]
[1752221286033,10.86523596,2975.1,2975.0,25.50750469]
[1752221286240,10.86523596,2975.1,2975.0,28.07525516]
[1752221286415,10.86523596,2975.1,2975.0,22.49125516]
[1752221286618,10.86523596,2975.1,2975.0,28.07425516]
[1752221287351,10.86523596,2975.1,2975.0,28.24125516]
[1752221287636,11.97523596,2975.1,2975.0,28.24125516]
[1752221288333,11.97523596,2975.1,2975.0,28.24325516]
[1752221288542,11.1698208,2975.1,2975.0,28.24325516]
[1752221288743,11.1708208,2975.1,2975.0,28.24325516]
[1752221289655,10.7681164,2975.1,2975.0,30.25925516]
[1752221290148,11.8781164,2975.1,2975.0,31.07822457]
[1752221291242,10.78756187,2975.1,2975.0,30.68683737]
[1752221291443,10.61976425,2975.1,2975.0,31.62822457]
[1752221291652,10.61976425,2975.1,2975.0,31.62222457]
[1752221291861,10.45196663,2975.1,2975.0,31.62222457]
[1752221292402,11.39420054,2975.1,2975.0,31.62222457]
[1752221292710,11.22643445,2975.1,2975.0,31.62222457]
[1752221293247,11.05866836,2975.1,2975.0,31.62222457]
[1752221293455,10.89090227,2975.1,2975.0,31.62222457]
[1752221293609,10.89090227,2975.1,2975.0,31.19464236]
[1752221293810,10.72313618,2975.1,2975.0,31.19464236]
[1752221294035,10.72313618,2975.1,2975.0,30.80325516]
[1752221294241,10.55537009,2975.1,2975.0,30.80325516]
[1752221294622,10.387604,2975.1,2975.0,30.80325516]
[1752221294940,11.497604,2975.1,2975.0,30.80325516]
[1752221295144,11.32983791,2975.1,2975.0,30.80325516]
[1752221295551,11.16207182,2975.1,2975.0,30.80325516]
[1752221295950,10.99430573,2975.1,2975.0,30.79825516]
[1752221296339,10.82653964,2975.1,2975.0,30.79725516]
[1752221296836,9.85351361,2975.1,2975.0,30.79725516]
[1752221297042,9.68574752,2975.1,2975.0,30.79725516]
[1752221297348,9.70530122,2975.1,2975.0,30.79725516]
[1752221297553,9.53753513,2975.1,2975.0,30.79725516]
[1752221297953,9.36976904,2975.1,2975.0,30.79725516]
[1752221298254,9.20200295,2975.1,2975.0,30.79725516]
[1752221298618,9.03425375,2975.1,2975.0,30.79725516]
[1752221299051,9.06650455,2975.1,2975.0,30.79725516]
[1752221299254,9.06650455,2975.1,2975.0,31.18864236]
[1752221299463,10.00875535,2975.1,2975.0,31.18864236]
[1752221299664,9.60613485,2975.1,2975.0,31.18864236]
[1752221299980,9.43838565,2975.1,2975.0,31.18864236]
[1752221300123,9.27063645,2975.1,2975.0,31.18864236]
[1752221300624,9.10288725,2975.1,2975.0,30.79325516]
[1752221301048,8.93513805,2975.1,2975.0,30.79325516]
[1752221301357,8.76738885,2975.1,2975.0,30.79225516]
[1752221301662,8.76738885,2975.1,2975.0,30.79125516]
[1752221301838,9.70963965,2975.1,2975.0,30.79125516]
[1752221302238,9.54189045,2975.1,2975.0,30.79125516]
[1752221302655,9.37414125,2975.1,2975.0,30.79125516]
[1752221302970,9.20639205,2975.1,2975.0,30.79125516]
[1752221303132,8.1159558,2975.1,2975.0,30.79125516]
[1752221303332,7.9482066,2975.1,2975.0,30.78925516]
[1752221303772,7.7804574,2975.1,2975.0,30.78925516]
[1752221303943,7.7804574,2975.1,2975.0,25.22725516]
[1752221304265,8.7227082,2975.1,2975.0,30.78825516]
[1752221304628,7.74969027,2975.1,2975.0,30.23825516]
[1752221305071,7.58194107,2975.1,2975.0,30.23825516]
[1752221305433,7.41419187,2975.1,2975.0,30.23825516]
[1752221305664,7.41419187,2975.1,2975.0,30.78825516]
[1752221305863,7.24644267,2975.1,2975.0,30.78825516]
[1752221306269,7.07869347,2975.1,2975.0,30.78825516]
[1752221306568,8.02094427,2975.1,2975.0,31.60722457]
[1752221306942,7.85319507,2975.1,2975.0,44.77980457]
[1752221307264,7.85319507,2975.1,2975.0,45.14131689]
[1752221307567,7.68544587,2975.1,2975.0,31.96873689]
[1752221307747,7.51769667,2975.1,2975.0,40.39603689]
[1752221307948,7.51769667,2975.1,2975.0,43.26103689]
[1752221308267,6.14229846,2975.1,2975.0,39.14703689]
[1752221308446,4.80590953,2975.1,2975.0,39.14703689]
[1752221308648,4.63816033,2975.1,2975.0,39.14703689]
[1752221308847,4.63816033,2975.1,2975.0,36.38403689]
[1752221309047,5.58041113,2975.1,2975.0,36.38403689]
[1752221309454,5.41266193,2975.1,2975.0,36.38403689]
[1752221309747,4.8423635,2975.1,2975.0,28.33203689]
[1752221309941,4.8423635,2975.1,2975.0,24.25293689]
[1752221310146,4.6746143,2975.1,2975.0,36.48815989]
[1752221310576,4.5068651,2975.1,2975.0,36.48815989]
[1752221310758,4.5068651,2975.1,2975.0,33.73815989]
[1752221310953,4.3391159,2975.1,2975.0,33.73815989]
[1752221311368,5.2813667,2975.1,2975.0,33.73815989]
[1752221311533,5.2813667,2975.1,2975.0,29.35936389]
[1752221311534,3.6003667,2975.1,2975.0,29.35936389]
[1752221311737,3.4326175,2975.1,2975.0,29.35936389]
[1752221312052,3.4326175,2975.1,2975.0,36.53328889]
[1752221312253,0.9422508,2975.3,2975.2,39.053037]
[1752221312565,0.7745016,2975.3,2975.2,50.67151873]
[1752221312765,0.30499047,2975.8,2975.7,2.566]
[1752221313063,0.13728684,2975.8,2975.7,22.9853]
[1752221313269,0.13728684,2975.8,2975.7,23.1533]
[1752221313571,15.41267727,2976.1,2976.0,13.5303]
[1752221313741,15.24497364,2976.1,2976.0,23.84133]
[1752221314070,15.24497364,2976.1,2976.0,24.00933]
[1752221314368,15.07727001,2976.1,2976.0,24.00933]
[1752221314531,16.70527001,2976.1,2976.0,0.168]
[1752221314736,1.628,2976.0,2974.9,4.9898]
[1752221314951,1.628,2976.0,2975.6,0.168]
[1752221315275,3.315327,2976.0,2975.8,10.0]
[1752221315475,3.315327,2976.0,2975.9,15.548]
[1752221316374,4.425327,2976.0,2975.9,15.548]
[1752221317065,4.425327,2976.0,2975.9,15.547]
[1752221317236,4.425327,2976.0,2975.9,23.598]
[1752221318728,5.535327,2976.0,2975.9,23.598]
[1752221318869,5.535327,2976.0,2975.9,18.051]
[1752221319217,5.535327,2976.0,2975.9,23.595]
[1752221319592,5.13273737,2976.0,2975.9,23.595]
[1752221321315,6.24273737,2976.0,2975.9,23.595]
[1752221322933,4.55541037,2976.0,2975.9,23.595]
[1752221323736,5.66541037,2976.0,2975.9,23.595]
[1752221323924,4.44,2976.0,2975.9,23.595]
[1752221324130,4.44,2976.0,2975.9,24.58196941]
[1752221325446,4.44,2976.0,2975.9,23.763]
[1752221326315,5.55,2976.0,2975.9,23.763]
[1752221327232,5.55,2976.0,2975.9,23.595]
[1752221327822,4.74487786,2976.0,2975.9,23.595]
[1752221328701,5.85487786,2976.0,2975.9,23.595]
[1752221329611,5.45230856,2976.0,2975.9,23.595]
[1752221330940,5.45230856,2976.0,2975.9,23.584]
[1752221331144,6.56230856,2976.0,2975.9,23.584]
[1752221331848,6.56230856,2976.0,2975.9,23.586]
[1752221332026,6.56330856,2976.0,2975.9,23.586]
[1752221332746,6.56330856,2976.0,2975.9,8.053]
[1752221332747,10.27116642,2976.0,2975.9,8.053]
[1752221333050,10.27116642,2976.0,2975.9,13.585]
[1752221333226,10.27116642,2976.0,2975.9,23.585]
[1752221333626,11.38116642,2976.0,2975.9,23.585]
[1752221334030,9.21710856,2976.0,2975.9,23.585]
[1752221335824,9.21710856,2976.0,2975.9,23.581]
[1752221336025,10.32710856,2976.0,2975.9,23.581]
[1752221338562,11.43710856,2976.0,2975.9,23.581]
[1752221338738,9.89330856,2976.0,2975.9,23.581]
[1752221340950,10.60072268,2976.0,2975.9,23.581]
[1752221342446,10.60072268,2976.0,2975.9,25.9391]
[1752221342761,10.60072268,2976.0,2975.9,26.1071]
[1752221343163,10.60072268,2976.0,2975.9,28.6731]
[1752221343164,11.54299373,2976.0,2975.9,28.6731]
[1752221343341,10.73788487,2976.0,2975.9,31.04046941]
[1752221343661,10.57015592,2976.0,2975.9,31.04046941]
[1752221343959,10.40242697,2976.0,2975.9,31.04046941]
[1752221344371,9.14451294,2976.0,2975.9,31.04046941]
[1752221344963,8.97678399,2976.0,2975.9,31.04046941]
[1752221345139,8.80905504,2976.0,2975.9,31.04046941]
[1752221345639,9.75132609,2976.0,2975.9,31.04046941]
[1752221346045,9.58359714,2976.0,2975.9,31.04046941]
[1752221346353,9.41586819,2976.0,2975.9,31.04046941]
[1752221346662,11.00056819,2976.0,2975.9,18.221]
[1752221346862,11.00056819,2976.0,2975.9,18.053]
[1752221347071,11.00056819,2976.0,2975.9,13.568]
[1752221347368,11.00056819,2976.0,2975.9,23.568]
[1752221348267,12.11056819,2976.0,2975.9,23.568]
[1752221348675,10.52586819,2976.0,2975.9,23.568]
[1752221349952,10.52586819,2976.0,2975.9,18.053]
[1752221350138,10.52586819,2976.0,2975.9,23.565]
[1752221350540,10.52586819,2976.0,2975.9,25.581]
[1752221350785,11.63586819,2976.0,2975.9,25.581]
[1752221350951,11.23328404,2976.0,2975.9,29.7409]
[1752221351479,10.42817127,2976.0,2975.9,29.7409]
[1752221351969,10.42817127,2976.0,2975.9,28.1539]
[1752221352336,12.03497127,2976.0,2975.9,20.069]
[1752221352575,12.03497127,2976.0,2975.9,23.563]
[1752221352777,10.42817127,2976.0,2975.9,23.563]
[1752221353147,11.53817127,2976.0,2975.9,23.563]
[1752221353591,11.53817127,2976.0,2975.9,25.579]
[1752221353971,11.53817127,2976.0,2975.9,28.28869]
[1752221354555,11.53817127,2976.0,2975.9,28.6800772]
[1752221354961,11.37044345,2976.0,2975.9,28.6800772]
[1752221355385,12.31271563,2976.0,2975.9,28.6800772]
[1752221355586,12.31271563,2976.0,2975.9,31.20155941]
[1752221355793,11.05484229,2976.0,2975.9,31.56307173]
[1752221356101,10.88711447,2976.0,2975.9,31.56307173]
[1752221356470,10.71938665,2976.0,2975.9,31.56307173]
[1752221356978,10.55165883,2976.0,2975.9,31.56307173]
[1752221357485,10.38393101,2976.0,2975.9,31.56307173]
[1752221357670,10.21620319,2976.0,2975.9,31.56307173]
[1752221357877,11.32620319,2976.0,2975.9,31.56307173]
[1752221358198,11.15847537,2976.0,2975.9,30.73710232]
[1752221358580,10.99074755,2976.0,2975.9,30.73710232]
[1752221358977,10.82301973,2976.0,2975.9,30.73710232]
[1752221359494,9.85030651,2976.0,2975.9,30.73710232]
[1752221359692,9.68257869,2976.0,2975.9,24.68410232]
[1752221359998,9.68257869,2976.0,2975.9,30.37359]
[1752221360207,10.62485087,2976.0,2975.9,30.70979]
[1752221360412,10.62485087,2976.0,2975.9,23.32869]
[1752221360587,10.62485087,2976.0,2975.9,10.069]
[1752221360911,10.22231394,2976.0,2975.9,25.569]
[1752221361812,9.13215577,2976.0,2975.9,25.569]
[1752221362379,9.13215577,2976.0,2975.9,28.37358221]
[1752221362578,10.24215577,2976.0,2975.9,28.37358221]
[1752221362782,10.24215577,2976.0,2975.9,31.58547915]
[1752221363179,10.24215577,2976.0,2975.9,31.15789694]
[1752221364007,10.07446508,2976.0,2975.9,25.65789694]
[1752221364195,10.07446508,2976.0,2975.9,31.15589694]
[1752221364396,9.90677439,2976.0,2975.9,31.15489694]
[1752221364817,9.90677439,2976.0,2975.9,31.15389694]
[1752221365017,11.01677439,2976.0,2975.9,31.15389694]
[1752221365215,11.01677439,2976.0,2975.9,25.65789694]
[1752221365518,11.01677439,2976.0,2975.9,31.15289694]
[1752221366419,10.8490837,2976.0,2975.9,31.15289694]
[1752221366782,10.68139301,2976.0,2975.9,31.15289694]
[1752221367110,10.68139301,2976.0,2975.9,31.97186635]
[1752221367303,10.81871009,2976.0,2975.9,31.97186635]
[1752221367718,10.65101209,2976.0,2975.9,31.54228414]
[1752221367943,9.56093074,2976.0,2975.9,31.15089694]
[1752221368143,9.39323274,2976.0,2975.9,31.15089694]
[1752221368643,9.22553474,2976.0,2975.9,31.15089694]
[1752221368814,9.05783674,2976.0,2975.9,31.15089694]
[1752221369314,8.89013874,2976.0,2975.9,31.15089694]
[1752221369732,9.83244074,2976.0,2975.9,31.15089694]
[1752221370101,9.66474274,2976.0,2975.9,31.14889694]
[1752221370329,9.66474274,2976.0,2975.9,23.99889694]
[1752221370498,9.49704474,2976.0,2975.9,29.48989694]
[1752221370935,8.92684917,2976.0,2975.9,29.48989694]
[1752221371156,8.92684917,2976.0,2975.9,23.99889694]
[1752221371349,8.75915117,2976.0,2975.9,29.48889694]
[1752221371634,8.75915117,2976.0,2975.9,10.069]
[1752221371796,8.75915117,2976.0,2975.9,15.558]
[1752221372299,9.86915117,2976.0,2975.9,20.069]
[1752221372609,9.86915117,2976.0,2975.9,25.557]
[1752221374037,9.86915117,2976.0,2975.9,20.069]
[1752221374240,9.86915117,2976.0,2975.9,25.556]
[1752221374537,10.97915117,2976.0,2975.9,25.556]
[1752221374737,12.48715117,2976.0,2975.9,20.069]
[1752221374924,15.24359329,2976.0,2975.9,8.053]
[1752221375505,1.508,2975.9,2975.6,8.05]
[1752221375709,0.55,2975.8,2975.7,5.485]
[1752221375904,0.55,2975.9,2975.0,0.25930469]
[1752221376109,7.16565965,2975.7,2975.0,0.25930469]
[1752221376341,7.16565965,2975.3,2975.0,0.25930469]